bitfinex-derivatives/quotes_BTCF0:USTF0_20240902
["timestamp","ask_amount","ask_price","bid_price","bid_amount"]
[1725287612738,0.0004,58682.0,58681.0,0.446002]
[1725287613035,0.2904,58682.0,58681.0,0.3608]
[1725287613234,0.0004,58682.0,58681.0,0.3608]
[1725287613935,0.0004,58682.0,58681.0,1.847242]
[1725287614138,0.00025556,58687.0,58686.0,0.170388]
[1725287614439,0.37516,58710.0,58700.0,0.085174]
[1725287614633,0.37516,58710.0,58709.0,0.0004]
[1725287616435,0.3608,58714.0,58709.0,0.0004]
[1725287616635,0.00025556,58715.0,58709.0,0.0004]
[1725287616835,0.00025556,58715.0,58714.0,0.0004]
[1725287619836,0.00025556,58715.0,58714.0,0.51136]
[1725287620143,0.00025556,58715.0,58714.0,0.596514]
[1725287620745,0.085118,58739.0,58714.0,0.596514]
[1725287620746,0.29,58767.0,58725.0,0.3608]
[1725287620948,0.29,58767.0,58766.0,0.0004]
[1725287621235,0.00849178,58774.0,58766.0,0.0004]
[1725287621426,0.29,58779.0,58773.0,0.0004]
[1725287621631,0.00590246,58781.0,58778.0,0.0004]
[1725287621830,0.0024,58781.0,58780.0,0.3612]
[1725287622034,0.3608,58799.0,58780.0,0.9608]
[1725287622035,0.29,58797.0,58780.0,0.9608]
[1725287622346,0.3608,58799.0,58785.0,0.3608]
[1725287622347,0.29,58791.0,58785.0,0.3608]
[1725287623341,0.29,58786.0,58782.0,0.00025532]
[1725287623542,0.6508,58783.0,58782.0,0.00025532]
[1725287623842,0.29,58783.0,58782.0,0.00025532]
[1725287624031,0.3608,58793.0,58782.0,0.00025532]
[1725287624228,0.29,58789.0,58782.0,0.00025532]
[1725287624429,0.3608,58793.0,58782.0,0.00025532]
[1725287625932,0.29,58784.0,58782.0,0.00025532]
[1725287626747,0.3608,58785.0,58782.0,0.00025532]
[1725287627333,0.29,58790.0,58782.0,0.00025532]
[1725287628447,0.3608,58783.0,58782.0,0.00025532]
[1725287628744,0.3608,58788.0,58782.0,0.00025532]
[1725287628952,0.00025532,58794.0,58787.0,0.6508]
[1725287629239,1.6451,58877.0,58793.0,0.6508]
[1725287629240,0.375008,58815.0,58793.0,0.6508]
[1725287629448,0.29,58810.0,58800.0,0.3608]
[1725287629643,0.085018,58808.0,58800.0,0.3608]
[1725287629843,0.375022,58805.0,58800.0,0.3608]
[1725287630047,0.085024,58804.0,58800.0,0.3608]
[1725287630341,0.085035,58797.0,58793.0,0.3608]
[1725287630542,0.085037,58795.0,58793.0,0.3608]
[1725287630949,0.085047,58788.0,58782.0,0.3608]
[1725287631141,0.085049,58787.0,58782.0,0.3608]
[1725287631344,0.29,58784.0,58775.0,0.3608]
[1725287631640,0.29,58784.0,58779.0,0.00025509]
[1725287631948,0.00025509,58785.0,58779.0,0.00025509]
[1725287632243,0.3608,58808.0,58784.0,0.3616]
[1725287632445,0.445818,58808.0,58795.0,0.3608]
[1725287632649,0.445818,58808.0,58807.0,0.0008]
[1725287632843,0.735818,58808.0,58795.0,0.3608]
[1725287633040,0.085022,58806.0,58795.0,0.3608]
[1725287633239,0.085022,58806.0,58796.0,0.00025509]
[1725287633240,0.085021,58806.0,58796.0,0.00025509]
[1725287634451,0.08503,58800.0,58796.0,0.00025509]
[1725287635149,0.29,58802.0,58796.0,0.00025509]
[1725287635447,0.00025509,58807.0,58801.0,0.0008]
[1725287635650,0.29,58802.0,58801.0,0.0008]
[1725287636155,0.375026,58802.0,58801.0,0.0008]
[1725287636646,1.4002,58802.0,58795.0,0.3608]
[1725287636851,0.3608,58805.0,58784.0,0.3608]
[1725287636852,0.3608,58800.0,58784.0,0.3608]
[1725287637148,0.3608,58800.0,58754.0,0.29]
[1725287637149,0.0008,58802.0,58798.0,0.3608]
[1725287637352,0.0008,58802.0,58801.0,0.0008]
[1725287638349,0.085826,58802.0,58801.0,0.0008]
[1725287639446,0.375826,58802.0,58801.0,0.0008]
[1725287639949,0.886026,58802.0,58796.0,0.00025509]
[1725287640163,0.3608,58797.0,58796.0,0.00025509]
[1725287640449,0.0008,58802.0,58796.0,0.00025509]
[1725287640843,0.3608,58800.0,58796.0,0.00025509]
[1725287641356,0.29,58801.0,58796.0,0.00025509]
[1725287641747,0.3608,58798.0,58796.0,0.00025509]
[1725287641946,0.085034,58797.0,58784.0,0.3608]
[1725287642151,0.29,58791.0,58784.0,0.3608]
[1725287642355,0.6508,58791.0,58784.0,0.3608]
[1725287642654,0.085047,58788.0,58784.0,0.3608]
[1725287642966,0.6508,58786.0,58777.0,0.3608]
[1725287643144,0.6508,58778.0,58770.0,0.3608]
[1725287643342,0.6508,58771.0,58761.0,0.3608]
[1725287643555,0.29,58782.0,58766.0,0.3608]
[1725287643854,0.3608,58777.0,58768.0,0.36105509]
[1725287644057,0.00025509,58772.0,58768.0,0.36105509]
[1725287644253,0.3608,58770.0,58768.0,0.00025509]
[1725287644454,0.0004,58769.0,58768.0,0.00025509]
[1725287644670,0.0004,58769.0,58768.0,0.36105509]
[1725287644965,0.0004,58769.0,58768.0,0.00025509]
[1725287646558,0.29,58794.0,58768.0,1.11073509]
[1725287646759,0.085051,58785.0,58774.0,0.3608]
[1725287647053,0.375055,58783.0,58774.0,0.3608]
[1725287647754,0.29,58777.0,58768.0,0.00025509]
[1725287647958,0.29,58771.0,58768.0,0.00025509]
[1725287649859,0.085074,58769.0,58768.0,0.00025509]
[1725287650162,0.085074,58769.0,58755.0,0.3608]
[1725287650163,0.3608,58769.0,58755.0,0.3608]
[1725287650359,0.3608,58769.0,58749.0,0.3608]
[1725287650360,0.3608,58760.0,58749.0,0.3608]
[1725287650664,0.3608,58760.0,58743.0,0.6508]
[1725287650665,0.29,58751.0,58743.0,0.36348]
[1725287650862,0.29,58746.0,58743.0,0.36348]
[1725287651047,0.29,58746.0,58743.0,0.3608]
[1725287652054,0.0004,58744.0,58743.0,0.3608]
[1725287653366,0.0004,58744.0,58739.0,0.00025531]
[1725287653556,0.2904,58740.0,58739.0,0.00025531]
[1725287655261,0.0004,58740.0,58739.0,1.19609331]
[1725287655567,0.00025531,58750.0,58739.0,1.11097531]
[1725287655756,0.00025531,58750.0,58749.0,0.3612]
[1725287656062,0.29025531,58750.0,58749.0,0.3612]
[1725287656655,0.00025531,58750.0,58749.0,0.3612]
[1725287657059,0.00025531,58750.0,58749.0,0.446303]
[1725287657453,0.00025531,58750.0,58749.0,0.3612]
[1725287658366,0.29025531,58750.0,58749.0,0.3612]
[1725287658952,0.57435587,58773.0,58749.0,1.612]
[1725287659151,0.57435587,58773.0,58772.0,0.0004]
[1725287659560,0.57435587,58773.0,58772.0,1.11084]
[1725287660360,0.86435587,58773.0,58772.0,0.0004]
[1725287661360,0.57435587,58773.0,58772.0,0.0004]
[1725287661663,0.57435587,58773.0,58772.0,0.51084]
[1725287661871,0.57435587,58773.0,58772.0,0.0004]
[1725287661872,0.86435587,58773.0,58772.0,0.0004]
[1725287662064,0.94942387,58773.0,58772.0,0.0004]
[1725287662372,0.86435587,58773.0,58772.0,0.3612]
[1725287663354,0.94942387,58773.0,58772.0,0.0004]
[1725287663669,0.57435587,58773.0,58772.0,0.0004]
[1725287665662,0.57435587,58773.0,58772.0,0.51084]
[1725287666262,0.57435587,58773.0,58772.0,0.0004]
[1725287669675,0.57435587,58773.0,58772.0,1.11084]
[1725287670160,0.57435587,58773.0,58772.0,1.19591]
[1725287670975,0.57435587,58773.0,58772.0,0.51084]
[1725287671975,0.94942387,58773.0,58772.0,0.0004]
[1725287672771,0.94942387,58773.0,58767.0,0.00025531]
[1725287672772,0.085076,58768.0,58767.0,0.00025531]
[1725287672975,0.2904,58768.0,58767.0,0.00025531]
[1725287673673,0.375476,58768.0,58767.0,0.00025531]
[1725287673868,0.085077,58767.0,58755.0,0.3608]
[1725287674067,0.375093,58756.0,58755.0,0.3608]
[1725287674266,0.375493,58756.0,58755.0,0.3608]
[1725287674672,1.40944457,58756.0,58749.0,0.3608]
[1725287674969,0.375502,58750.0,58749.0,0.3608]
[1725287676073,0.2904,58750.0,58747.0,0.00025531]
[1725287676273,0.0004,58748.0,58747.0,0.00025531]
[1725287676976,0.085505,58748.0,58747.0,0.00025531]
[1725287677168,1.196185,58748.0,58747.0,0.00025531]
[1725287678468,0.596185,58748.0,58747.0,0.00025531]
[1725287678978,0.085505,58748.0,58747.0,0.00025531]
[1725287679975,0.085115,58741.0,58731.0,0.3608]
[1725287680277,0.0004,58732.0,58731.0,0.3608]
[1725287682181,0.2904,58732.0,58731.0,0.3608]
[1725287682770,0.375528,58732.0,58731.0,0.3608]
[1725287684179,0.375528,58732.0,58726.0,0.36105531]
[1725287684180,0.2904,58732.0,58726.0,0.36105531]
[1725287684480,0.375535,58727.0,58726.0,0.00025531]
[1725287685065,0.2904,58727.0,58726.0,0.00025531]
[1725287685873,0.375535,58727.0,58726.0,0.00025531]
[1725287686069,0.335535,58727.0,58726.0,0.00025531]
[1725287686582,0.2504,58727.0,58726.0,0.00025531]
[1725287686881,0.0004,58727.0,58726.0,1.53136731]
[1725287687073,0.00025531,58737.0,58736.0,0.085122]
[1725287687269,0.00025531,58737.0,58736.0,1.23276]
[1725287687475,0.00025531,58737.0,58736.0,0.722]
[1725287687675,0.00025531,58737.0,58736.0,0.807122]
[1725287687977,0.00025531,58737.0,58736.0,0.722]
[1725287688183,0.00025531,58737.0,58736.0,1.83276]
[1725287688374,0.00025531,58737.0,58736.0,0.722]
[1725287688779,0.3608,58754.0,58736.0,2.12276]
[1725287688975,0.29,58751.0,58736.0,0.446321]
[1725287689180,0.3608,58754.0,58736.0,0.3608]
[1725287689181,0.29,58745.0,58736.0,0.3608]
[1725287689681,0.29,58751.0,58736.0,0.3608]
[1725287689984,0.00025531,58749.0,58743.0,0.3608]
[1725287690385,0.29,58745.0,58743.0,0.3608]
[1725287690886,0.00025531,58749.0,58743.0,0.3608]
[1725287691076,1.0116,58744.0,58723.0,0.3608]
[1725287691278,0.29,58724.0,58720.0,0.3608]
[1725287691479,0.3608,58729.0,58720.0,0.3608]
[1725287691480,0.29,58721.0,58720.0,0.3608]
[1725287692076,0.2904,58721.0,58720.0,0.3608]
[1725287692783,0.2904,58721.0,58715.0,0.00025531]
[1725287692979,0.0004,58716.0,58715.0,0.00025531]
[1725287693978,0.08539131,58726.0,58715.0,0.00025531]
[1725287694180,0.29,58717.0,58715.0,0.00025531]
[1725287697191,0.375149,58717.0,58715.0,0.00025531]
[1725287697391,0.085151,58716.0,58715.0,0.00025531]
[1725287700482,0.170302,58716.0,58715.0,0.00025531]
[1725287700686,0.085151,58716.0,58715.0,0.00025531]
[1725287701580,0.170302,58716.0,58715.0,0.00025531]
[1725287702086,0.085159,58711.0,58699.0,0.3608]
[1725287702282,0.29,58700.0,58699.0,0.3608]
[1725287702585,0.2904,58700.0,58699.0,0.3608]
[1725287703687,0.736375,58700.0,58692.0,0.3608]
[1725287703887,0.2904,58693.0,58692.0,0.3608]
[1725287704792,0.29,58698.0,58692.0,1.47192]
[1725287704985,0.29,58698.0,58697.0,0.3612]
[1725287705596,0.29,58698.0,58685.0,0.3608]
[1725287705897,0.29,58686.0,58685.0,0.3608]
[1725287707889,0.085188,58691.0,58685.0,0.3608]
[1725287708196,0.25,58686.0,58685.0,0.3608]
[1725287710191,0.2504,58686.0,58685.0,0.3608]
[1725287710591,0.2504,58686.0,58685.0,0.445996]
[1725287712695,0.00025554,58697.0,58685.0,1.472]
[1725287712696,0.25,58696.0,58685.0,1.472]
[1725287712899,0.25,58696.0,58695.0,0.3612]
[1725287712900,0.08518,58696.0,58695.0,0.3612]
[1725287713194,0.00025554,58697.0,58695.0,0.446381]
[1725287713397,0.00025554,58697.0,58696.0,0.0004]
[1725287714399,0.25025554,58697.0,58696.0,0.0004]
[1725287715499,0.33543354,58697.0,58696.0,0.0004]
[1725287716101,0.25025554,58697.0,58696.0,0.08558]
[1725287716296,0.00025554,58697.0,58696.0,0.08558]
[1725287717608,0.25025554,58697.0,58696.0,0.08558]
[1725287718701,0.25025554,58697.0,58696.0,0.0004]
[1725287720294,0.25025554,58697.0,58696.0,1.1967]
[1725287720295,0.00025554,58697.0,58696.0,1.1967]
[1725287720503,0.25,58712.0,58711.0,0.085158]
[1725287720698,0.25,58717.0,58712.0,0.085157]
[1725287720904,0.25,58717.0,58716.0,0.0004]
[1725287721103,0.085155,58713.0,58711.0,0.3612]
[1725287721402,0.4353,58722.0,58711.0,0.446358]
[1725287721403,0.2504,58712.0,58711.0,0.446358]
[1725287721598,0.2504,58712.0,58711.0,0.3612]
[1725287722200,0.2504,58712.0,58711.0,0.446358]
[1725287722794,0.2504,58712.0,58711.0,1.557318]
[1725287722795,0.0004,58712.0,58711.0,1.557318]
[1725287723207,0.25,58740.0,58716.0,0.3608]
[1725287723403,0.08511,58744.0,58743.0,0.3608]
[1725287723609,0.08511,58744.0,58743.0,0.3612]
[1725287723610,0.25,58744.0,58743.0,0.3612]
[1725287723800,0.25,58744.0,58743.0,0.3608]
[1725287724403,0.25,58744.0,58739.0,0.0004]
[1725287724711,0.25,58744.0,58743.0,0.3608]
[1725287724911,0.00025554,58749.0,58743.0,0.3608]
[1725287724912,0.00025554,58749.0,58747.0,0.085105]
[1725287725106,0.00025554,58749.0,58748.0,0.3608]
[1725287725312,0.00025554,58749.0,58748.0,1.47184]
[1725287725611,0.3608,58773.0,58749.0,0.085102]
[1725287725612,0.25,58767.0,58749.0,0.085102]
[1725287725801,0.25,58767.0,58766.0,0.0004]
[1725287726204,0.25,58775.0,58766.0,0.0004]
[1725287726506,0.25,58775.0,58774.0,0.0004]
[1725287728205,0.0002553,58776.0,58774.0,0.0004]
[1725287728402,0.0002553,58776.0,58775.0,0.0004]
[1725287731512,0.25,58797.0,58776.0,0.5104]
[1725287731709,0.25,58797.0,58790.0,0.3608]
[1725287735612,0.0779,58798.0,58790.0,0.3608]
[1725287735613,0.25,58792.0,58790.0,0.3608]
[1725287736017,0.25,58792.0,58791.0,0.0008]
[1725287736516,0.00384772,58799.0,58791.0,0.0008]
[1725287736819,0.085004,58824.0,58791.0,0.0008]
[1725287736820,0.25,58825.0,58798.0,0.3616]
[1725287737019,0.3608,58827.0,58810.0,0.2508]
[1725287737318,0.3608,58838.0,58821.0,0.3608]
[1725287737319,0.3644078,58838.0,58821.0,0.3608]
[1725287737525,0.25,58823.0,58821.0,0.3608]
[1725287737815,0.25,58828.0,58821.0,0.3608]
[1725287738017,0.25,58824.0,58821.0,0.3608]
[1725287739219,0.25,58825.0,58821.0,0.3608]
[1725287739413,0.25,58825.0,58824.0,0.0008]
[1725287740520,0.00025505,58828.0,58827.0,0.084999]
[1725287740712,0.00025505,58828.0,58827.0,0.446599]
[1725287741108,0.00025505,58828.0,58827.0,0.956559]
[1725287741313,0.00025505,58828.0,58827.0,0.446599]
[1725287741513,0.00025505,58828.0,58827.0,0.3616]
[1725287742517,0.00025505,58828.0,58827.0,0.0008]
[1725287744021,0.00025505,58828.0,58827.0,1.195759]
[1725287744413,0.3608,58848.0,58827.0,1.11076]
[1725287744613,0.084935,58871.0,58839.0,0.7224]
[1725287744817,0.2324,58887.0,58839.0,0.0008]
[1725287744818,0.3608,58842.0,58839.0,0.0008]
[1725287745023,0.3608,58848.0,58823.0,0.3608]
[1725287745024,0.6008,58840.0,58829.0,0.3608]
[1725287745217,0.3608,58848.0,58836.0,0.3608]
[1725287745218,0.24,58844.0,58836.0,0.3608]
[1725287745521,0.24,58844.0,58835.0,0.3608]
[1725287746327,0.0787,58852.0,58835.0,0.3608]
[1725287746328,0.24,58840.0,58835.0,0.3608]
[1725287746918,0.324981,58840.0,58835.0,0.3608]
[1725287747114,0.6008,58840.0,58824.0,0.3608]
[1725287747329,0.24,58834.0,58824.0,0.3608]
[1725287748020,0.24,58829.0,58824.0,0.3608]
[1725287748220,0.445788,58835.0,58824.0,0.3608]
[1725287748221,0.3608,58835.0,58824.0,0.3608]
[1725287748427,0.24,58837.0,58830.0,0.3608]
[1725287748724,0.24,58832.0,58830.0,0.3608]
[1725287748920,0.25,58831.0,58830.0,0.3608]
[1725287749226,0.25,58831.0,58823.0,0.00025505]
[1725287749227,0.085,58826.0,58823.0,0.00025505]
[1725287749413,0.335002,58825.0,58823.0,0.00025505]
[1725287750014,0.25,58824.0,58799.0,0.3608]
[1725287750222,0.25,58801.0,58799.0,0.3608]
[1725287750439,0.25,58817.0,58800.0,0.25]
[1725287750728,0.3608,58834.0,58816.0,0.3608]
[1725287751023,0.24016829,58839.0,58829.0,0.3608]
[1725287751226,0.24016829,58839.0,58824.0,0.6008]
[1725287751227,0.3694675,58846.0,58834.0,0.3608]
[1725287751418,0.3608,58840.0,58834.0,0.3608]
[1725287751626,0.25,58835.0,58834.0,0.3608]
[1725287751922,0.24,58835.0,58834.0,0.3608]
[1725287752718,0.24,58835.0,58829.0,0.00025505]
[1725287752921,0.2504,58830.0,58829.0,0.00025505]
[1725287753721,0.6112,58830.0,58829.0,0.00025505]
[1725287754029,0.2504,58830.0,58829.0,0.00025505]
[1725287754523,0.3612,58830.0,58829.0,0.00025505]
[1725287754729,0.6112,58830.0,58829.0,0.00025505]
[1725287755629,0.3612,58830.0,58829.0,0.00025505]
[1725287755822,0.6112,58830.0,58829.0,0.00025505]
[1725287756427,1.806154,58830.0,58816.0,0.3608]
[1725287756737,0.0004,58817.0,58816.0,0.3608]
[1725287758030,0.25,58817.0,58816.0,0.3608]
[1725287758331,0.25,58817.0,58811.0,0.36105505]
[1725287758533,0.25,58812.0,58811.0,0.36105505]
[1725287758720,0.36931032,58812.0,58811.0,0.00025505]
[1725287758921,0.36931032,58812.0,58788.0,0.3608]
[1725287758922,1.72943032,58812.0,58788.0,0.3608]
[1725287759143,0.3608,58800.0,58788.0,0.3608]
[1725287759330,0.25,58801.0,58788.0,0.3608]
[1725287759636,0.25,58801.0,58800.0,0.0004]
[1725287759833,0.1536,58811.0,58800.0,0.0004]
[1725287759834,0.3608,58807.0,58800.0,0.0004]
[1725287760028,0.25,58811.0,58806.0,0.0004]
[1725287760241,0.25,58811.0,58810.0,0.0004]
[1725287760434,0.00025505,58816.0,58806.0,0.0004]
[1725287760735,0.0004,58811.0,58810.0,0.085023]
[1725287760933,0.0004,58811.0,58809.0,0.3608]
[1725287761128,0.0004,58811.0,58810.0,0.51012]
[1725287761325,0.00025505,58816.0,58815.0,0.085016]
[1725287761632,0.00025505,58816.0,58815.0,0.446216]
[1725287761939,0.00025505,58816.0,58815.0,1.556296]
[1725287762246,0.25,58833.0,58815.0,1.47128]
[1725287762427,0.24362793,58846.0,58832.0,0.3612]
[1725287762626,0.24,58846.0,58845.0,0.0004]
[1725287763025,0.24,58846.0,58844.0,0.3608]
[1725287764233,0.00025505,58851.0,58844.0,0.3608]
[1725287764438,0.00025505,58851.0,58846.0,0.0004]
[1725287765929,0.00025505,58851.0,58846.0,0.5102]
[1725287766133,0.00025505,58851.0,58846.0,1.195171]
[1725287766436,0.00025505,58851.0,58850.0,0.084966]
[1725287766735,0.00025505,58851.0,58850.0,0.66721785]
[1725287766927,0.00025505,58851.0,58850.0,0.3608]
[1725287767128,0.00025505,58851.0,58850.0,0.3616]
[1725287768137,2.04517092,58851.0,58841.0,0.04980433]
[1725287768438,0.24,58848.0,58840.0,0.04980433]
[1725287768629,0.24,58848.0,58839.0,0.00025505]
[1725287768630,0.24,58848.0,58839.0,0.05005938]
[1725287768832,0.08497,58847.0,58839.0,0.05005938]
[1725287769039,0.24,58848.0,58839.0,0.00025505]
[1725287769040,0.084973,58845.0,58839.0,0.00025505]
[1725287769230,0.084979,58841.0,58839.0,0.00025505]
[1725287769432,0.69348202,58841.0,58839.0,0.00025505]
[1725287769626,0.75984,58840.0,58839.0,0.00025505]
[1725287769840,0.75984,58840.0,58821.0,0.08312367]
[1725287769841,0.084987,58835.0,58828.0,0.04980433]
[1725287770142,0.084987,58835.0,58817.0,0.3608]
[1725287770143,0.25,58831.0,58821.0,0.04980433]
[1725287770332,0.085006,58822.0,58819.0,0.04980433]
[1725287770642,0.25,58820.0,58813.0,0.04980433]
[1725287770847,0.25,58820.0,58812.0,0.04980433]
[1725287771031,0.3608,58829.0,58816.0,0.6108]
[1725287771237,0.24850302,58841.0,58826.0,0.3608]
[1725287771438,0.24850302,58841.0,58826.0,0.41060433]
[1725287771842,0.25,58836.0,58826.0,0.41060433]
[1725287772042,0.00025505,58828.0,58826.0,0.41060433]
[1725287772530,0.00025505,58828.0,58827.0,0.41060433]
[1725287772731,0.00025505,58828.0,58827.0,0.3608]
[1725287773944,0.36105505,58828.0,58825.0,0.00025505]
[1725287774142,0.50996,58827.0,58825.0,0.00025505]
[1725287774335,0.0004,58826.0,58814.0,0.04980433]
[1725287774536,0.0004,58826.0,58809.0,0.06641785]
[1725287774537,0.0004,58826.0,58815.0,0.3608]
[1725287774741,0.43885505,58828.0,58813.0,0.04980433]
[1725287774940,0.0004,58814.0,58813.0,0.04980433]
[1725287775743,0.00025505,58828.0,58813.0,1.11008]
[1725287776042,0.00025505,58828.0,58827.0,0.0004]
[1725287778047,1.40021505,58828.0,58827.0,0.0004]
[1725287779541,0.00025505,58828.0,58827.0,0.0004]
[1725287784138,0.00025505,58828.0,58827.0,0.085399]
[1725287784754,0.00025505,58828.0,58827.0,0.0004]
[1725287786940,0.60025505,58828.0,58827.0,0.0004]
[1725287787255,0.00025505,58828.0,58827.0,0.0004]
[1725287788251,1.11021505,58828.0,58827.0,0.0004]
[1725287788653,0.00025505,58828.0,58827.0,0.0004]
[1725287790149,0.00025505,58828.0,58827.0,0.085399]
[1725287791957,0.00025505,58828.0,58827.0,0.0004]
[1725287792658,0.00025505,58828.0,58827.0,0.085399]
[1725287793745,0.00025505,58828.0,58827.0,0.0004]
[1725287798659,0.00025505,58828.0,58827.0,0.085399]
[1725287800854,0.00025505,58828.0,58827.0,0.0004]
[1725287802359,0.00025505,58828.0,58822.0,0.00025505]
[1725287802360,0.085005,58823.0,58822.0,0.00025505]
[1725287802553,0.085005,58823.0,58812.0,0.3608]
[1725287802554,0.085012,58819.0,58812.0,0.3608]
[1725287802754,0.0004,58813.0,58812.0,0.3608]
[1725287802957,0.0004,58823.0,58812.0,0.3608]
[1725287803154,0.0004,58823.0,58818.0,0.3608]
[1725287804561,0.25,58822.0,58818.0,0.3608]
[1725287804954,0.08501,58819.0,58818.0,0.3608]
[1725287805356,1.19505,58819.0,58818.0,0.3608]
[1725287805561,0.0004,58823.0,58818.0,0.3608]
[1725287805764,0.0004,58823.0,58822.0,0.325006]
[1725287805964,0.0004,58823.0,58822.0,0.410012]
[1725287806157,0.0004,58823.0,58822.0,1.520012]
[1725287807469,0.0004,58823.0,58822.0,0.595006]
[1725287807859,0.0004,58823.0,58822.0,1.195006]
[1725287808274,0.0004,58823.0,58822.0,0.085006]
[1725287808566,0.0004,58823.0,58822.0,1.195006]
[1725287808763,0.0004,58823.0,58822.0,1.520012]
[1725287808969,0.57435587,58832.0,58831.0,0.084993]
[1725287809265,0.57435587,58832.0,58831.0,1.286193]
[1725287809480,0.57435587,58832.0,58831.0,1.796113]
[1725287809968,5.4e-07,58832.0,58831.0,1.371186]
[1725287810163,5.4e-07,58832.0,58831.0,1.881106]
[1725287810368,0.084955,58857.0,58843.0,0.084976]
[1725287810665,0.24,58858.0,58843.0,0.084976]
[1725287810666,0.24,58858.0,58843.0,0.806976]
[1725287810873,0.00025505,58849.0,58843.0,1.916816]
[1725287811162,0.00025505,58849.0,58843.0,1.316816]
[1725287811367,0.00025505,58849.0,58843.0,0.806976]
[1725287812367,0.00025505,58849.0,58843.0,1.046976]
[1725287812873,0.00025505,58849.0,58843.0,1.316816]
[1725287812874,0.084969,58848.0,58843.0,1.316816]
[1725287813170,0.326174,58844.0,58843.0,0.3612]
[1725287813377,0.411148,58844.0,58843.0,0.3612]
[1725287813578,1.520988,58844.0,58843.0,0.3612]
[1725287813878,0.084981,58839.0,58838.0,0.00025505]
[1725287814059,0.686181,58839.0,58838.0,0.00025505]
[1725287814564,1.435261,58839.0,58838.0,0.00025505]
[1725287814865,0.325381,58839.0,58838.0,0.00025505]
[1725287815058,0.325381,58839.0,58817.0,0.0756]
[1725287815059,0.6412,58839.0,58812.0,0.3608]
[1725287815264,0.2504,58813.0,58812.0,0.3528]
[1725287816070,0.2504,58813.0,58790.0,0.25]
[1725287816071,0.2504,58813.0,58807.0,0.00025505]
[1725287816266,0.2504,58808.0,58789.0,0.3608]
[1725287816569,0.2504,58808.0,58757.0,0.02088392]
[1725287816570,0.0004,58790.0,58787.0,0.3608]
[1725287816772,0.0304,58808.0,58788.0,0.25]
[1725287816773,0.0004,58808.0,58788.0,0.25]
[1725287816971,0.0004,58808.0,58793.0,0.3608]
[1725287816972,0.25,58807.0,58793.0,0.3608]
[1725287817172,0.0004,58808.0,58793.0,0.3608]
[1725287817360,0.0004,58808.0,58807.0,0.0004]
[1725287818464,0.2504,58808.0,58807.0,0.0004]
[1725287818962,0.6112,58808.0,58807.0,0.0004]
[1725287821471,0.6112,58808.0,58793.0,0.3608]
[1725287821472,1.72132,58808.0,58793.0,0.3608]
[1725287821683,1.72132,58808.0,58779.0,0.3608]
[1725287821684,0.0004,58794.0,58779.0,0.3608]
[1725287821976,0.0004,58780.0,58772.0,0.3608]
[1725287822164,0.2504,58773.0,58772.0,0.3608]
[1725287822366,0.6112,58773.0,58757.0,0.3608]
[1725287822569,0.0004,58758.0,58757.0,0.3608]
[1725287822769,0.0004,58758.0,58757.0,0.4459]
[1725287822971,0.0004,58758.0,58757.0,1.55646]
[1725287823170,0.25,58781.0,58767.0,0.085085]
[1725287823371,0.25,58781.0,58768.0,0.3608]
[1725287823574,0.25,58781.0,58768.0,0.445883]
[1725287824173,0.25,58777.0,58768.0,0.3608]
[1725287824669,0.25,58772.0,58768.0,0.3608]
[1725287824871,0.25,58772.0,58763.0,0.3608]
[1725287825671,0.25,58767.0,58763.0,0.3608]
[1725287826183,0.3608,58778.0,58764.0,0.51052]
[1725287826475,0.00025505,58782.0,58779.0,0.085068]
[1725287826678,0.00025505,58782.0,58781.0,0.0004]
[1725287827981,0.25,58794.0,58784.0,0.085061]
[1725287828176,0.25,58794.0,58793.0,0.0004]
[1725287829473,0.3608,58797.0,58793.0,0.0004]
[1725287829683,0.3608,58797.0,58796.0,0.0004]
[1725287830280,0.445842,58797.0,58796.0,0.0004]
[1725287830582,0.085054,58789.0,58788.0,0.00025528]
[1725287830783,0.736254,58789.0,58788.0,0.00025528]
[1725287831574,0.736254,58789.0,58788.0,1e-08]
[1725287832580,1.85492533,58789.0,58788.0,1e-08]
[1725287833778,1.93997933,58789.0,58788.0,1e-08]
[1725287835172,2.02997933,58789.0,58788.0,1e-08]
[1725287835378,0.08509,58765.0,58749.0,0.3608]
[1725287835686,0.0004,58750.0,58743.0,0.3608]
[1725287835982,0.29,58752.0,58749.0,0.085112]
[1725287836187,0.29,58752.0,58751.0,0.0004]
[1725287836484,0.00025528,58757.0,58756.0,0.085101]
[1725287836686,0.00025528,58762.0,58756.0,0.3612]
[1725287836991,0.00025528,58762.0,58761.0,0.445893]
[1725287837183,0.00025528,58762.0,58761.0,0.446293]
[1725287837588,0.00025528,58762.0,58761.0,1.556413]
[1725287838277,0.00025528,58762.0,58761.0,0.956413]
[1725287838587,0.00025528,58762.0,58761.0,0.445893]
[1725287839485,0.00025528,58762.0,58761.0,1.556413]
[1725287839683,0.3608,58773.0,58761.0,1.47132]
[1725287839888,0.29,58775.0,58772.0,0.085478]
[1725287840182,0.4418,58785.0,58774.0,0.0004]
[1725287840183,0.3608,58785.0,58774.0,0.0004]
[1725287840390,0.3608,58785.0,58773.0,0.51044]
[1725287840391,0.29,58786.0,58784.0,0.0004]
[1725287840680,0.3608,58796.0,58785.0,0.0004]
[1725287840681,0.3608,58788.0,58785.0,0.0004]
[1725287840885,0.3608,58788.0,58787.0,0.0004]
[1725287840886,0.445855,58788.0,58787.0,0.0004]
[1725287841179,0.00025528,58791.0,58787.0,0.0004]
[1725287841379,0.00025528,58791.0,58790.0,0.0004]
[1725287841380,0.08530628,58791.0,58790.0,0.0004]
[1725287841581,0.00025528,58791.0,58790.0,0.0004]